[Event "GrandPrix_29.05"]
[Site "Chess.com"]
[Date "2020.05.29"]
[Round "6"]
[White "rasmussvane"]
[Black "1stSecond"]
[Result "1-0"]
[WhiteElo "2514"]
[BlackElo "2480"]
[TimeControl "600+2"]
[EndTime "11:57:14 PDT"]
[Termination "rasmussvane won by resignation"]

1. Nf3 {[%clk 0:10:01.9]} 1... d5 {[%clk 0:09:50.9]} 2. g3 {[%clk 0:10:02.6]}
2... Nc6 {[%clk 0:09:51.6]} 3. d4 {[%clk 0:10:02.7]} 3... Bf5 {[%clk 0:09:52.8]}
4. Bg2 {[%clk 0:10:03.6]} 4... Nb4 {[%clk 0:09:53.1]} 5. Na3 {[%clk 0:10:04.4]}
5... e6 {[%clk 0:09:54.1]} 6. O-O {[%clk 0:10:04]} 6... Be7 {[%clk 0:09:49.7]}
7. c3 {[%clk 0:09:58.6]} 7... Nc6 {[%clk 0:09:46.4]} 8. Qb3 {[%clk 0:09:27]}
8... Rb8 {[%clk 0:09:47.1]} 9. Bf4 {[%clk 0:09:19.7]} 9... a6 {[%clk 0:09:22.4]}
10. Ne5 {[%clk 0:08:26.4]} 10... Nf6 {[%clk 0:08:50.9]} 11. Qa4 {[%clk
0:08:18.5]} 11... Bd6 {[%clk 0:07:57]} 12. Nxc6 {[%clk 0:08:07.2]} 12... Qd7
{[%clk 0:07:48.7]} 13. Nb5 {[%clk 0:06:35.8]} 13... Qxc6 {[%clk 0:06:28]} 14.
Nxd6+ {[%clk 0:05:38.3]} 14... cxd6 {[%clk 0:06:28.3]} 15. Qb4 {[%clk
0:05:28.1]} 15... Rd8 {[%clk 0:06:20.9]} 16. Rfc1 {[%clk 0:05:26.9]} 16... Be4
{[%clk 0:05:09.7]} 17. f3 {[%clk 0:05:11.5]} 17... Bg6 {[%clk 0:05:10.5]} 18. c4
{[%clk 0:05:12.7]} 18... Qd7 {[%clk 0:03:55]} 19. c5 {[%clk 0:05:07.3]} 19...
dxc5 {[%clk 0:03:40.4]} 20. Rxc5 {[%clk 0:04:59.8]} 20... O-O {[%clk 0:02:47.1]}
21. Rc7 {[%clk 0:04:57.7]} 21... Qe8 {[%clk 0:02:28.6]} 22. Rac1 {[%clk
0:04:17.7]} 22... a5 {[%clk 0:02:17.6]} 23. Qxa5 {[%clk 0:04:03.4]} 23... Ra8
{[%clk 0:02:18.6]} 24. Qb4 {[%clk 0:03:39.5]} 24... Ra4 {[%clk 0:02:18.7]} 25.
Qxb7 {[%clk 0:03:17.4]} 25... Rc4 {[%clk 0:02:19.5]} 26. Bd6 {[%clk 0:02:41.2]}
26... Rxc7 {[%clk 0:02:20.3]} 27. Qxc7 {[%clk 0:02:31.8]} 27... Qa4 {[%clk
0:02:19.5]} 28. Bxf8 {[%clk 0:02:32.5]} 28... Qxd4+ {[%clk 0:02:19.8]} 29. Kf1
{[%clk 0:02:28.2]} 1-0

[Event "GrandPrix_29.05"]
[Site "Chess.com"]
[Date "2020.05.29"]
[Round "6"]
[White "Sunnika"]
[Black "DarkAlekhine"]
[Result "0-1"]
[WhiteElo "2079"]
[BlackElo "2113"]
[TimeControl "600+2"]
[EndTime "11:57:14 PDT"]
[Termination "DarkAlekhine won by resignation"]

1. d4 {[%clk 0:10:01.9]} 1... Nf6 {[%clk 0:10:00.7]} 2. Nf3 {[%clk 0:10:02.5]}
2... g6 {[%clk 0:10:01.9]} 3. g3 {[%clk 0:10:02.7]} 3... Bg7 {[%clk 0:10:02.8]}
4. Bg2 {[%clk 0:10:04.3]} 4... O-O {[%clk 0:10:04.3]} 5. O-O {[%clk 0:10:05.8]}
5... d6 {[%clk 0:10:05.6]} 6. c4 {[%clk 0:10:07.2]} 6... Bf5 {[%clk 0:10:01.3]}
7. d5 {[%clk 0:09:52.6]} 7... c6 {[%clk 0:09:48.7]} 8. Nc3 {[%clk 0:08:24.1]}
8... Ne4 {[%clk 0:09:19.1]} 9. Nxe4 {[%clk 0:07:36.9]} 9... Bxe4 {[%clk
0:09:17.8]} 10. dxc6 {[%clk 0:07:38.2]} 10... Nxc6 {[%clk 0:09:16.9]} 11. Ng5
{[%clk 0:07:19.3]} 11... Bxg2 {[%clk 0:09:13.5]} 12. Kxg2 {[%clk 0:07:21.2]}
12... Na5 {[%clk 0:08:23.7]} 13. Rb1 {[%clk 0:05:49]} 13... Nxc4 {[%clk
0:08:17.1]} 14. b3 {[%clk 0:05:50.4]} 14... Nb6 {[%clk 0:08:01.1]} 15. Bb2
{[%clk 0:05:47.4]} 15... Bxb2 {[%clk 0:07:46.7]} 16. Rxb2 {[%clk 0:05:49.3]}
16... Rc8 {[%clk 0:07:45.6]} 17. Rd2 {[%clk 0:05:40.5]} 17... Qc7 {[%clk
0:07:41.4]} 18. h4 {[%clk 0:05:30.4]} 18... h6 {[%clk 0:07:37.4]} 19. Nh3 {[%clk
0:05:20.2]} 19... Nd7 {[%clk 0:07:34.4]} 20. Nf4 {[%clk 0:05:18.1]} 20... Nf6
{[%clk 0:07:34.5]} 21. f3 {[%clk 0:05:07.5]} 21... Qa5 {[%clk 0:07:13.7]} 22. e4
{[%clk 0:05:00.9]} 22... Rc5 {[%clk 0:07:13.9]} 23. Qe2 {[%clk 0:04:44.9]} 23...
Rfc8 {[%clk 0:07:09.9]} 24. b4 {[%clk 0:04:44.1]} 24... Qxb4 {[%clk 0:07:07.2]}
25. Nd3 {[%clk 0:04:42.6]} 25... Qxd2 {[%clk 0:07:05.8]} 26. Qxd2 {[%clk
0:04:38.1]} 26... Rc2 {[%clk 0:07:06.8]} 27. Rf2 {[%clk 0:04:34.6]} 27... Rxd2
{[%clk 0:07:07.5]} 28. Rxd2 {[%clk 0:04:36.5]} 28... Rc3 {[%clk 0:07:06]} 29.
Kf2 {[%clk 0:04:22.1]} 29... g5 {[%clk 0:06:47.2]} 30. hxg5 {[%clk 0:04:21.4]}
30... hxg5 {[%clk 0:06:49.1]} 31. g4 {[%clk 0:04:22.9]} 31... Nd7 {[%clk
0:06:49.1]} 32. Nb4 {[%clk 0:04:14.2]} 32... Nb6 {[%clk 0:06:44.5]} 33. Ke2
{[%clk 0:03:50.6]} 33... Kf8 {[%clk 0:06:44.7]} 34. Rd1 {[%clk 0:03:32.7]} 34...
a5 {[%clk 0:06:34.4]} 35. Nd5 {[%clk 0:03:26.6]} 35... Rc2+ {[%clk 0:06:29.6]}
36. Ke3 {[%clk 0:03:04.8]} 36... Nxd5+ {[%clk 0:06:22.9]} 37. Rxd5 {[%clk
0:03:04.6]} 37... Rxa2 {[%clk 0:06:24.3]} 38. Rxg5 {[%clk 0:03:05.6]} 38... Ra3+
{[%clk 0:06:15.3]} 39. Ke2 {[%clk 0:03:04.5]} 39... e5 {[%clk 0:06:09.8]} 40.
Rh5 {[%clk 0:02:57.5]} 40... Rb3 {[%clk 0:06:09.1]} 41. Rh8+ {[%clk 0:02:55.3]}
41... Ke7 {[%clk 0:06:09.6]} 42. Ra8 {[%clk 0:02:56.9]} 42... b6 {[%clk
0:06:07.3]} 43. g5 {[%clk 0:02:44.9]} 43... Rb4 {[%clk 0:06:04.1]} 44. Ra7+
{[%clk 0:02:25.4]} 44... Ke6 {[%clk 0:06:03.3]} 45. Kd2 {[%clk 0:00:51.1]} 45...
a4 {[%clk 0:06:02.5]} 46. Kc2 {[%clk 0:00:29.3]} 46... b5 {[%clk 0:06:03.1]} 47.
g6 {[%clk 0:00:19.5]} 47... fxg6 {[%clk 0:06:03.4]} 48. Rg7 {[%clk 0:00:21.1]}
48... Kf6 {[%clk 0:05:53.9]} 49. Rd7 {[%clk 0:00:22.3]} 49... Rd4 {[%clk
0:05:54.9]} 50. Ra7 {[%clk 0:00:20.3]} 50... Kg5 {[%clk 0:05:55.5]} 0-1

[Event "GrandPrix_29.05"]
[Site "Chess.com"]
[Date "2020.05.29"]
[Round "6"]
[White "Ave_Mariia"]
[Black "KruHor"]
[Result "0-1"]
[WhiteElo "2175"]
[BlackElo "2402"]
[TimeControl "600+2"]
[EndTime "11:57:17 PDT"]
[Termination "KruHor won by resignation"]

1. c4 {[%clk 0:10:01.9]} 1... e5 {[%clk 0:09:58.7]} 2. Nc3 {[%clk 0:09:59.2]}
2... Bb4 {[%clk 0:09:58.6]} 3. e3 {[%clk 0:09:48]} 3... Bxc3 {[%clk 0:09:42.8]}
4. bxc3 {[%clk 0:09:48.2]} 4... d6 {[%clk 0:09:38.9]} 5. Ne2 {[%clk 0:09:40.5]}
5... Nf6 {[%clk 0:09:32]} 6. Ng3 {[%clk 0:09:39]} 6... O-O {[%clk 0:09:29.4]} 7.
d4 {[%clk 0:09:20]} 7... Nc6 {[%clk 0:09:08.8]} 8. Bd3 {[%clk 0:08:59.4]} 8...
Na5 {[%clk 0:08:50.3]} 9. O-O {[%clk 0:08:54.7]} 9... b6 {[%clk 0:08:49.3]} 10.
e4 {[%clk 0:08:14.4]} 10... Ba6 {[%clk 0:08:42.7]} 11. Qe2 {[%clk 0:08:15.4]}
11... Re8 {[%clk 0:08:40]} 12. Nf5 {[%clk 0:07:45.5]} 12... Bc8 {[%clk
0:08:21.4]} 13. Qf3 {[%clk 0:07:11]} 13... Bxf5 {[%clk 0:08:18.5]} 14. Qxf5
{[%clk 0:07:11]} 14... Qd7 {[%clk 0:08:15.3]} 15. Qf3 {[%clk 0:06:47.8]} 15...
Qg4 {[%clk 0:08:14.8]} 16. Qxg4 {[%clk 0:06:33.8]} 16... Nxg4 {[%clk 0:08:13.8]}
17. f3 {[%clk 0:04:59.5]} 17... Nf6 {[%clk 0:08:13]} 18. c5 {[%clk 0:05:00]}
18... dxc5 {[%clk 0:08:05.6]} 19. dxc5 {[%clk 0:04:39.6]} 19... Red8 {[%clk
0:08:04.9]} 20. Rd1 {[%clk 0:04:24.6]} 20... Nd7 {[%clk 0:07:56.8]} 21. cxb6
{[%clk 0:03:29.5]} 21... axb6 {[%clk 0:07:56]} 22. Be3 {[%clk 0:03:26.1]} 22...
Kf8 {[%clk 0:07:51.4]} 23. Bb5 {[%clk 0:03:17.3]} 23... Ke7 {[%clk 0:07:48.1]}
24. Kf2 {[%clk 0:02:59.1]} 24... Nf8 {[%clk 0:07:35.8]} 25. Be2 {[%clk
0:02:24.7]} 25... Ne6 {[%clk 0:07:32.1]} 26. Rd5 {[%clk 0:02:24.6]} 26... f6
{[%clk 0:07:14.7]} 27. Rad1 {[%clk 0:02:24.5]} 27... Rxd5 {[%clk 0:06:49.6]} 28.
exd5 {[%clk 0:02:23.9]} 28... Nc5 {[%clk 0:06:42]} 29. Bxc5+ {[%clk 0:02:23.4]}
29... bxc5 {[%clk 0:06:42.2]} 30. Ke3 {[%clk 0:02:12]} 30... Nb7 {[%clk
0:06:39.4]} 31. Rd2 {[%clk 0:02:05.5]} 31... Ra3 {[%clk 0:06:37.9]} 32. Kd3
{[%clk 0:02:01.3]} 32... Kd6 {[%clk 0:06:33.7]} 33. Rb2 {[%clk 0:01:51.9]} 33...
Na5 {[%clk 0:06:13.1]} 34. Rb8 {[%clk 0:01:46.6]} 34... Rxa2 {[%clk 0:05:50.4]}
35. Rd8+ {[%clk 0:01:44.6]} 35... Ke7 {[%clk 0:05:50.4]} 36. Rg8 {[%clk
0:01:43.2]} 36... c4+ {[%clk 0:05:34.7]} 37. Ke3 {[%clk 0:01:42.8]} 37... g6
{[%clk 0:05:33.6]} 38. Rg7+ {[%clk 0:01:33]} 38... Kd6 {[%clk 0:05:33.7]} 39.
Rxh7 {[%clk 0:01:34.6]} 39... Rc2 {[%clk 0:05:25.4]} 40. Rf7 {[%clk 0:01:31.1]}
40... f5 {[%clk 0:05:24.9]} 41. Rf6+ {[%clk 0:01:26.9]} 41... Kxd5 {[%clk
0:05:25.5]} 42. Rxg6 {[%clk 0:01:27.4]} 42... Rxc3+ {[%clk 0:05:09.6]} 43. Kd2
{[%clk 0:01:28.2]} 43... Kd4 {[%clk 0:05:07.3]} 44. Rg7 {[%clk 0:01:25.6]} 44...
Nb3+ {[%clk 0:05:06.9]} 45. Ke1 {[%clk 0:01:25.1]} 45... Ke3 {[%clk 0:05:03.6]}
46. Rxc7 {[%clk 0:01:19.7]} 46... Rc1+ {[%clk 0:05:00.8]} 47. Bd1 {[%clk
0:01:21.2]} 47... Nd4 {[%clk 0:04:55.3]} 48. Rd7 {[%clk 0:01:13.1]} 48... c3
{[%clk 0:04:53.2]} 0-1

[Event "GrandPrix_29.05"]
[Site "Chess.com"]
[Date "2020.05.29"]
[Round "6"]
[White "ebret"]
[Black "Elshadchess"]
[Result "0-1"]
[WhiteElo "2009"]
[BlackElo "1934"]
[TimeControl "600+2"]
[EndTime "11:57:28 PDT"]
[Termination "Elshadchess won by resignation"]

1. d4 {[%clk 0:10:01.9]} 1... d5 {[%clk 0:09:58.6]} 2. Nf3 {[%clk 0:10:02.3]}
2... Nc6 {[%clk 0:09:59.3]} 3. Bf4 {[%clk 0:10:02]} 3... Bg4 {[%clk 0:09:58.8]}
4. e3 {[%clk 0:09:57.2]} 4... e6 {[%clk 0:09:59.2]} 5. Be2 {[%clk 0:09:57.9]}
5... Bd6 {[%clk 0:09:58.1]} 6. Bg3 {[%clk 0:09:57.2]} 6... Nge7 {[%clk
0:09:57.5]} 7. c4 {[%clk 0:09:56]} 7... Nf5 {[%clk 0:09:35.9]} 8. Bxd6 {[%clk
0:09:38.9]} 8... Qxd6 {[%clk 0:09:12.5]} 9. cxd5 {[%clk 0:08:44.9]} 9... exd5
{[%clk 0:09:05.4]} 10. Nc3 {[%clk 0:08:45.3]} 10... O-O {[%clk 0:08:47.9]} 11.
h3 {[%clk 0:08:43.9]} 11... Bxf3 {[%clk 0:08:48.1]} 12. Bxf3 {[%clk 0:08:45.8]}
12... Nce7 {[%clk 0:08:48.3]} 13. O-O {[%clk 0:08:43.5]} 13... c6 {[%clk
0:08:47.7]} 14. Rb1 {[%clk 0:08:43.7]} 14... Ng6 {[%clk 0:08:40.6]} 15. b4
{[%clk 0:08:36.5]} 15... a6 {[%clk 0:08:40.7]} 16. a4 {[%clk 0:08:34.2]} 16...
Nfh4 {[%clk 0:08:03.9]} 17. b5 {[%clk 0:08:32.8]} 17... axb5 {[%clk 0:08:04.4]}
18. axb5 {[%clk 0:08:33.4]} 18... Ra3 {[%clk 0:08:01.7]} 19. Ne2 {[%clk
0:07:53]} 19... Nxf3+ {[%clk 0:08:00.7]} 20. gxf3 {[%clk 0:07:54.9]} 20... Nh4
{[%clk 0:07:51.9]} 21. Nf4 {[%clk 0:07:35.9]} 21... g5 {[%clk 0:07:02.8]} 22.
Nh5 {[%clk 0:07:09.2]} 22... Qg6 {[%clk 0:07:02.5]} 23. Ng3 {[%clk 0:07:04.9]}
23... f5 {[%clk 0:07:00.3]} 24. bxc6 {[%clk 0:06:58.3]} 24... bxc6 {[%clk
0:06:59.4]} 25. Qc1 {[%clk 0:05:44.5]} 25... Nxf3+ {[%clk 0:06:52.6]} 26. Kg2
{[%clk 0:05:45.7]} 26... Nh4+ {[%clk 0:06:50.2]} 27. Kh1 {[%clk 0:05:46.5]}
27... f4 {[%clk 0:06:08.2]} 28. Qxa3 {[%clk 0:03:47.4]} 28... fxg3 {[%clk
0:06:07.9]} 29. Kg1 {[%clk 0:03:48.4]} 29... Qe4 {[%clk 0:05:17.6]} 30. Qxf8+
{[%clk 0:02:44.6]} 30... Kxf8 {[%clk 0:05:16.2]} 31. fxg3+ {[%clk 0:02:45.6]}
31... Nf5 {[%clk 0:04:37]} 32. g4 {[%clk 0:02:44.9]} 32... Qxe3+ {[%clk
0:04:32.2]} 33. Kh2 {[%clk 0:02:40]} 33... Qg3+ {[%clk 0:04:31.7]} 34. Kh1
{[%clk 0:02:38.8]} 34... Qxh3+ {[%clk 0:04:32.3]} 35. Kg1 {[%clk 0:02:38.7]}
35... Qxg4+ {[%clk 0:04:33.4]} 36. Kh1 {[%clk 0:02:34.9]} 36... Qh4+ {[%clk
0:04:22.5]} 37. Kg2 {[%clk 0:02:32.8]} 37... Qe4+ {[%clk 0:04:18.3]} 38. Kh2
{[%clk 0:02:21.9]} 38... Kg7 {[%clk 0:04:17.6]} 39. Rbe1 {[%clk 0:02:08.1]}
39... Qh4+ {[%clk 0:04:16.5]} 40. Kg2 {[%clk 0:02:06.5]} 40... Qg3+ {[%clk
0:04:17.4]} 41. Kh1 {[%clk 0:02:07.7]} 41... Ne3 {[%clk 0:04:11.8]} 42. Rf7+
{[%clk 0:02:02.2]} 42... Kxf7 {[%clk 0:04:04.4]} 43. Rf1+ {[%clk 0:02:02.6]}
43... Qf4 {[%clk 0:04:02.4]} 44. Rf2 {[%clk 0:01:56.7]} 44... Kg6 {[%clk
0:03:58]} 0-1

[Event "GrandPrix_29.05"]
[Site "Chess.com"]
[Date "2020.05.29"]
[Round "6"]
[White "fm_magua"]
[Black "Kopytkin"]
[Result "1-0"]
[WhiteElo "1846"]
[BlackElo "2160"]
[TimeControl "600+2"]
[EndTime "11:57:30 PDT"]
[Termination "fm_magua won by checkmate"]

1. e4 {[%clk 0:10:00.2]} 1... Nf6 {[%clk 0:10:00.2]} 2. e5 {[%clk 0:10:00.6]}
2... Nd5 {[%clk 0:10:01.3]} 3. c4 {[%clk 0:10:01.4]} 3... Nb6 {[%clk 0:10:01.8]}
4. c5 {[%clk 0:10:02.7]} 4... Nd5 {[%clk 0:10:03]} 5. Bc4 {[%clk 0:10:03.7]}
5... c6 {[%clk 0:10:03.9]} 6. Nc3 {[%clk 0:10:04.9]} 6... e6 {[%clk 0:10:04.6]}
7. d4 {[%clk 0:10:05.2]} 7... b6 {[%clk 0:10:05.7]} 8. cxb6 {[%clk 0:10:05.7]}
8... Qxb6 {[%clk 0:10:06]} 9. Nge2 {[%clk 0:10:07.4]} 9... Ba6 {[%clk
0:10:06.6]} 10. Bb3 {[%clk 0:10:07.6]} 10... Be7 {[%clk 0:09:58.6]} 11. O-O
{[%clk 0:10:06]} 11... O-O {[%clk 0:09:59.6]} 12. Be3 {[%clk 0:10:06.8]} 12...
f5 {[%clk 0:09:47.8]} 13. exf6 {[%clk 0:10:00.6]} 13... Bxf6 {[%clk 0:09:45.4]}
14. Na4 {[%clk 0:09:58.7]} 14... Qc7 {[%clk 0:07:38.2]} 15. Nc5 {[%clk
0:09:56.5]} 15... Bxe2 {[%clk 0:07:38]} 16. Qxe2 {[%clk 0:09:56.8]} 16... a5
{[%clk 0:07:37.7]} 17. Qg4 {[%clk 0:09:44]} 17... Na6 {[%clk 0:07:13.3]} 18. Ne4
{[%clk 0:09:43.4]} 18... Nab4 {[%clk 0:07:06.8]} 19. a3 {[%clk 0:09:30]} 19...
Nd3 {[%clk 0:06:06.7]} 20. Rfd1 {[%clk 0:09:17.8]} 20... N3f4 {[%clk 0:05:36.7]}
21. g3 {[%clk 0:08:57.8]} 21... h5 {[%clk 0:03:49.3]} 22. Bxf4 {[%clk
0:08:57.6]} 22... hxg4 {[%clk 0:03:39.6]} 23. Bxc7 {[%clk 0:08:58.1]} 23... Nxc7
{[%clk 0:03:40.8]} 24. Nc5 {[%clk 0:08:43.4]} 24... Rf7 {[%clk 0:03:35.1]} 25.
Rd3 {[%clk 0:08:40.9]} 25... Rb8 {[%clk 0:03:15.9]} 26. Re1 {[%clk 0:08:07.2]}
26... Nd5 {[%clk 0:03:03.7]} 27. Re4 {[%clk 0:07:52.1]} 27... Bg5 {[%clk
0:02:18.7]} 28. Bxd5 {[%clk 0:07:00.4]} 28... cxd5 {[%clk 0:01:53.2]} 29. Rxg4
{[%clk 0:07:00.3]} 29... Bc1 {[%clk 0:01:52.9]} 30. Nb3 {[%clk 0:06:41.4]} 30...
Bxb2 {[%clk 0:01:39.1]} 31. Nxa5 {[%clk 0:06:42.5]} 31... Rb5 {[%clk 0:01:18.8]}
32. Nb3 {[%clk 0:06:35.6]} 32... Bxa3 {[%clk 0:01:19.9]} 33. Nd2 {[%clk
0:06:36.5]} 33... Bd6 {[%clk 0:00:47.4]} 34. Nf3 {[%clk 0:06:34.8]} 34... Rb1+
{[%clk 0:00:44.5]} 35. Kg2 {[%clk 0:06:35.9]} 35... Rb2 {[%clk 0:00:45.6]} 36.
h4 {[%clk 0:06:24.8]} 36... Be7 {[%clk 0:00:44.8]} 37. h5 {[%clk 0:06:18.9]}
37... Kf8 {[%clk 0:00:36.2]} 38. Rc3 {[%clk 0:06:18]} 38... Bf6 {[%clk
0:00:36.6]} 39. Rf4 {[%clk 0:06:10.2]} 39... Ke7 {[%clk 0:00:37.4]} 40. g4
{[%clk 0:06:04.3]} 40... Ke8 {[%clk 0:00:27]} 41. Rc8+ {[%clk 0:06:03.3]} 41...
Ke7 {[%clk 0:00:20.6]} 42. g5 {[%clk 0:06:03.5]} 42... Bxg5 {[%clk 0:00:15.8]}
43. Rxf7+ {[%clk 0:06:03.3]} 43... Kxf7 {[%clk 0:00:17.2]} 44. Nxg5+ {[%clk
0:06:05]} 44... Kf6 {[%clk 0:00:18.6]} 45. Nf3 {[%clk 0:06:05.4]} 45... d6
{[%clk 0:00:14.8]} 46. Rf8+ {[%clk 0:05:59]} 46... Ke7 {[%clk 0:00:15.6]} 47.
Ra8 {[%clk 0:05:54.3]} 47... Kf6 {[%clk 0:00:16.8]} 48. Ra6 {[%clk 0:05:53.8]}
48... Ke7 {[%clk 0:00:16.4]} 49. Kg3 {[%clk 0:05:52.7]} 49... Rb8 {[%clk
0:00:16.7]} 50. Kg4 {[%clk 0:05:49.1]} 50... Rf8 {[%clk 0:00:17.7]} 51. Ra7+
{[%clk 0:05:48.6]} 51... Kf6 {[%clk 0:00:18.8]} 52. Ng5 {[%clk 0:05:49.7]} 52...
Rb8 {[%clk 0:00:14.9]} 53. Rf7# {[%clk 0:05:49.7]} 1-0

[Event "GrandPrix_29.05"]
[Site "Chess.com"]
[Date "2020.05.29"]
[Round "6"]
[White "weplaychess09"]
[Black "EvgenyRomanov"]
[Result "0-1"]
[WhiteElo "2059"]
[BlackElo "2078"]
[TimeControl "600+2"]
[EndTime "11:57:35 PDT"]
[Termination "EvgenyRomanov won by checkmate"]

1. d4 {[%clk 0:10:01.9]} 1... Nf6 {[%clk 0:09:21.2]} 2. c4 {[%clk 0:10:02.9]}
2... c5 {[%clk 0:09:22.1]} 3. d5 {[%clk 0:10:03.5]} 3... b5 {[%clk 0:09:23.3]}
4. cxb5 {[%clk 0:10:04.7]} 4... a6 {[%clk 0:09:23.6]} 5. bxa6 {[%clk 0:10:06.6]}
5... g6 {[%clk 0:09:23.6]} 6. Nc3 {[%clk 0:10:07.4]} 6... Bg7 {[%clk 0:09:23.4]}
7. e4 {[%clk 0:10:08.9]} 7... O-O {[%clk 0:09:19.4]} 8. e5 {[%clk 0:10:10.2]}
8... Ne8 {[%clk 0:09:15.6]} 9. h4 {[%clk 0:10:11.2]} 9... h5 {[%clk 0:08:41.6]}
10. g4 {[%clk 0:09:44.6]} 10... hxg4 {[%clk 0:08:33.4]} 11. h5 {[%clk 0:09:40]}
11... d6 {[%clk 0:08:29.5]} 12. hxg6 {[%clk 0:08:56.5]} 12... dxe5 {[%clk
0:08:22]} 13. Qc2 {[%clk 0:08:03.5]} 13... f5 {[%clk 0:07:58.7]} 14. f3 {[%clk
0:07:54.8]} 14... Qd6 {[%clk 0:07:54.4]} 15. fxg4 {[%clk 0:07:32.1]} 15... Nxa6
{[%clk 0:07:46.9]} 16. Bc4 {[%clk 0:06:59.8]} 16... e4 {[%clk 0:07:32.6]} 17.
Nge2 {[%clk 0:06:41]} 17... Nb4 {[%clk 0:07:23.3]} 18. Qd1 {[%clk 0:06:30.2]}
18... Ba6 {[%clk 0:07:07.2]} 19. Bf4 {[%clk 0:06:06.7]} 19... Qxg6 {[%clk
0:07:05.5]} 20. Qb3 {[%clk 0:05:54.4]} 20... Bxc4 {[%clk 0:06:59.5]} 21. Qxc4
{[%clk 0:05:55.7]} 21... Nd3+ {[%clk 0:06:58.6]} 22. Kd2 {[%clk 0:05:56.2]}
22... fxg4 {[%clk 0:05:14.4]} 23. d6+ {[%clk 0:05:31]} 23... e6 {[%clk
0:05:13.2]} 24. Raf1 {[%clk 0:04:59.9]} 24... Nxf4 {[%clk 0:02:41.4]} 25. Nxf4
{[%clk 0:04:40.6]} 25... Nxd6 {[%clk 0:02:40.9]} 26. Qxe6+ {[%clk 0:04:31.9]}
26... Qxe6 {[%clk 0:02:40.2]} 27. Nxe6 {[%clk 0:04:33.2]} 27... Nc4+ {[%clk
0:02:36.6]} 28. Ke2 {[%clk 0:04:25.3]} 28... Rxf1 {[%clk 0:02:35.9]} 29. Rxf1
{[%clk 0:04:24.8]} 29... Bxc3 {[%clk 0:02:35.8]} 30. bxc3 {[%clk 0:04:21.4]}
30... Rxa2+ {[%clk 0:02:35.6]} 31. Ke1 {[%clk 0:04:17.5]} 31... e3 {[%clk
0:02:15.7]} 32. Rf5 {[%clk 0:04:04.1]} 32... g3 {[%clk 0:01:50.8]} 33. Rg5+
{[%clk 0:03:48.9]} 33... Kf7 {[%clk 0:01:48.3]} 34. Nxc5 {[%clk 0:03:48.7]}
34... g2 {[%clk 0:01:42.4]} 35. Nb3 {[%clk 0:03:45.4]} 35... Ne5 {[%clk
0:01:34.9]} 36. Rg3 {[%clk 0:03:23.2]} 36... Nd3+ {[%clk 0:01:29.4]} 37. Kd1
{[%clk 0:03:22.3]} 37... e2# {[%clk 0:01:29.4]} 0-1

[Event "GrandPrix_29.05"]
[Site "Chess.com"]
[Date "2020.05.29"]
[Round "6"]
[White "SoltaniciR"]
[Black "Nitzan_Steinberg"]
[Result "0-1"]
[WhiteElo "2061"]
[BlackElo "2261"]
[TimeControl "600+2"]
[EndTime "11:57:45 PDT"]
[Termination "Nitzan_Steinberg won on time"]

1. e4 {[%clk 0:09:24.1]} 1... c5 {[%clk 0:10:00.3]} 2. Nf3 {[%clk 0:09:24]} 2...
d6 {[%clk 0:10:01.2]} 3. d4 {[%clk 0:09:24.5]} 3... cxd4 {[%clk 0:10:02.4]} 4.
Nxd4 {[%clk 0:09:26.4]} 4... Nf6 {[%clk 0:10:03.9]} 5. Nc3 {[%clk 0:09:27.9]}
5... a6 {[%clk 0:10:04.9]} 6. Be3 {[%clk 0:09:29.1]} 6... e5 {[%clk 0:10:05.5]}
7. Nf3 {[%clk 0:09:30.6]} 7... Qc7 {[%clk 0:10:05.7]} 8. a4 {[%clk 0:09:30.9]}
8... Be7 {[%clk 0:10:05.3]} 9. a5 {[%clk 0:09:31.8]} 9... Be6 {[%clk 0:10:04]}
10. Be2 {[%clk 0:09:32.7]} 10... O-O {[%clk 0:09:59.7]} 11. O-O {[%clk
0:09:31.9]} 11... Nbd7 {[%clk 0:09:50.9]} 12. Nd5 {[%clk 0:09:32.5]} 12... Nxd5
{[%clk 0:09:48.8]} 13. exd5 {[%clk 0:09:34.4]} 13... Bf5 {[%clk 0:09:50.1]} 14.
c4 {[%clk 0:09:35.5]} 14... Bg6 {[%clk 0:09:50.9]} 15. b4 {[%clk 0:08:49.7]}
15... f5 {[%clk 0:09:50.4]} 16. Bg5 {[%clk 0:08:26.5]} 16... Qd8 {[%clk
0:09:08.9]} 17. Bxe7 {[%clk 0:08:16.4]} 17... Qxe7 {[%clk 0:09:10.8]} 18. Qb3
{[%clk 0:08:17.6]} 18... Kh8 {[%clk 0:09:03.8]} 19. Rfe1 {[%clk 0:08:09.8]}
19... Qf6 {[%clk 0:08:58.8]} 20. Rad1 {[%clk 0:08:06.2]} 20... f4 {[%clk
0:08:39.6]} 21. Bd3 {[%clk 0:07:57]} 21... Rae8 {[%clk 0:08:39]} 22. Nd2 {[%clk
0:07:53.2]} 22... f3 {[%clk 0:08:01.5]} 23. Bxg6 {[%clk 0:07:18.8]} 23... fxg2
{[%clk 0:08:01.2]} 24. Ne4 {[%clk 0:07:18.8]} 24... Qxg6 {[%clk 0:08:00.5]} 25.
Qg3 {[%clk 0:06:56.8]} 25... Qh6 {[%clk 0:07:42.4]} 26. c5 {[%clk 0:06:35.2]}
26... dxc5 {[%clk 0:07:43.4]} 27. bxc5 {[%clk 0:06:35.2]} 27... Rf4 {[%clk
0:07:44.2]} 28. Rb1 {[%clk 0:02:42.2]} 28... Qh5 {[%clk 0:07:04]} 29. h3 {[%clk
0:01:33.1]} 29... Nf6 {[%clk 0:06:20.2]} 30. Rxb7 {[%clk 0:01:21.9]} 30... Rg8
{[%clk 0:06:21]} 31. Ng5 {[%clk 0:00:50.1]} 31... Nxd5 {[%clk 0:06:11.3]} 32.
Rxe5 {[%clk 0:00:47.3]} 32... Qd1+ {[%clk 0:06:12.1]} 33. Kxg2 {[%clk
0:00:46.7]} 33... h6 {[%clk 0:06:13.2]} 34. Ne6 {[%clk 0:00:19.2]} 34... g5
{[%clk 0:05:49]} 35. Rxg5 {[%clk 0:00:02.5]} 35... hxg5 {[%clk 0:05:37.7]} 36.
Nxg5 {[%clk 0:00:02.6]} 36... Ne3+ {[%clk 0:04:45.6]} 0-1

[Event "GrandPrix_29.05"]
[Site "Chess.com"]
[Date "2020.05.29"]
[Round "6"]
[White "khekhm"]
[Black "Haykos"]
[Result "1-0"]
[WhiteElo "2411"]
[BlackElo "2179"]
[TimeControl "600+2"]
[EndTime "11:57:58 PDT"]
[Termination "khekhm won on time"]

1. e4 {[%clk 0:10:01.9]} 1... c5 {[%clk 0:09:53.8]} 2. Nf3 {[%clk 0:09:53.4]}
2... e6 {[%clk 0:09:55.1]} 3. d4 {[%clk 0:09:53.7]} 3... cxd4 {[%clk 0:09:56.6]}
4. Nxd4 {[%clk 0:09:55.6]} 4... Nf6 {[%clk 0:09:58]} 5. Nc3 {[%clk 0:09:50.2]}
5... Nc6 {[%clk 0:09:59.4]} 6. Ndb5 {[%clk 0:09:50.7]} 6... Bb4 {[%clk
0:10:00.8]} 7. a3 {[%clk 0:09:51.5]} 7... Bxc3+ {[%clk 0:10:02.3]} 8. Nxc3
{[%clk 0:09:53.4]} 8... d5 {[%clk 0:10:03.6]} 9. exd5 {[%clk 0:09:55.3]} 9...
Nxd5 {[%clk 0:10:04.6]} 10. Bd2 {[%clk 0:09:55.3]} 10... e5 {[%clk 0:10:00.7]}
11. Bd3 {[%clk 0:09:33.7]} 11... O-O {[%clk 0:09:57.9]} 12. O-O {[%clk
0:09:31.7]} 12... Be6 {[%clk 0:09:38.3]} 13. Ne4 {[%clk 0:09:28.1]} 13... h6
{[%clk 0:08:55.1]} 14. Nc5 {[%clk 0:08:58.3]} 14... Bc8 {[%clk 0:08:54.2]} 15.
c4 {[%clk 0:08:43.4]} 15... Nde7 {[%clk 0:08:48.6]} 16. Bc3 {[%clk 0:07:59.9]}
16... b6 {[%clk 0:08:38.5]} 17. Ne4 {[%clk 0:08:00.9]} 17... Bb7 {[%clk
0:07:39.8]} 18. Re1 {[%clk 0:07:49.1]} 18... Qc7 {[%clk 0:07:24.2]} 19. Qh5
{[%clk 0:07:01.8]} 19... f5 {[%clk 0:07:21.7]} 20. Ng3 {[%clk 0:06:44.1]} 20...
e4 {[%clk 0:07:13.3]} 21. Bc2 {[%clk 0:06:37.1]} 21... Ne5 {[%clk 0:06:16]} 22.
Rad1 {[%clk 0:06:18]} 22... Ng4 {[%clk 0:04:59.8]} 23. Nxf5 {[%clk 0:05:32.7]}
23... Nxf2 {[%clk 0:03:11.2]} 24. Nxh6+ {[%clk 0:03:32.2]} 24... gxh6 {[%clk
0:03:11.2]} 25. Qxh6 {[%clk 0:03:33.6]} 1-0